fUSD/lending_fUSD_20240801
["ID","MTS","AMOUNT","RATE_DAILY","PERIOD"]
[333831387,1722537055699,-308.34,0.0001621,2]
[333831388,1722537055709,-2692.24190968,0.00016215,2]
[333831389,1722537055719,-2481.06031558,0.00016232,2]
[333831390,1722537055728,-298.6580517,0.00016232,2]
[333831391,1722537055738,-200.0,0.0001634,2]
[333831392,1722537055748,-400.0,0.00016342,2]
[333831393,1722537055758,-167.0,0.00016354,2]
[333831394,1722537055768,-150.0,0.00016384,2]
[333831395,1722537055778,-150.0,0.00016384,2]
[333831396,1722537055788,-150.0,0.00016384,2]
[333831397,1722537055798,-300.0,0.00016438,2]
[333831398,1722537055808,-706.91,0.00016438,2]
[333831399,1722537055818,-206.03077175,0.0001648,2]
[333831400,1722537055827,-231.45,0.00016485,2]
[333831401,1722537055837,-1017.69012285,0.00016579,2]
[333831402,1722537055847,-2692.24190968,0.00016585,2]
[333831403,1722537055856,-1000.0,0.00016609,2]
[333831404,1722537055867,-150.0,0.00016622,2]
[333831405,1722537055881,-170.81662989,0.0001665,2]
[333831406,1722537055893,-578.7311687,0.00016672,2]
[333831407,1722537055904,-6088.74333677,0.00016698,2]
[333831408,1722537055915,-216.69,0.00016712,2]
[333831409,1722537055925,-3030.733546,0.00016712,2]
[333831410,1722537055935,-1003.94,0.00016715,2]
[333831411,1722537055946,-1003.94,0.0001673,2]
[333831412,1722537055957,-167.0,0.00016876,2]
[333831413,1722537055967,-308.34,0.0001694,2]
[333831414,1722537055978,-1002.48431709,0.0001695,2]
[333831415,1722537055988,-260.4732278,0.00016953,2]
[333831416,1722537055998,-637.88,0.00016986,2]
[333831417,1722537056008,-218.62,0.00017,3]
[333831418,1722537056019,-2000.0,0.00017,2]
[333831419,1722537056029,-749.15,0.00017152,2]
[333831420,1722537056039,-610.122244,0.0001718,2]
[333831421,1722537056049,-308.62238007,0.00017235,2]
[333831422,1722537056059,-167.0,0.00017399,2]
[333831423,1722537056069,-3030.733546,0.00017534,2]
[333831424,1722537056079,-150.0,0.00017565,2]
[333831425,1722537056089,-2258.0,0.00017647,2]
[333831426,1722537056099,-150.0,0.00017728,2]
[333831427,1722537056109,-2500.0,0.000178,2]
[333831428,1722537056119,-7379.39,0.00017808,2]
[333831429,1722537056129,-308.34,0.0001791,2]
[333831430,1722537056140,-167.0,0.00017921,2]
[333831431,1722537056150,-2692.24190968,0.00017949,2]
[333831432,1722537056160,-155.62009027,0.00018,2]
[333831433,1722537056170,-1117.92588277,0.00018,2]
[333831434,1722537056180,-2216.0,0.00018,2]
[333831435,1722537056190,-250.0,0.00018,2]
[333831436,1722537056201,-250.0,0.00018,2]
[333831437,1722537056212,-1849.80736893,0.00018,2]
[333831438,1722537056222,-655.88973604,0.00018,2]
[333831439,1722537056232,-675.40404622,0.00018,2]
[333831440,1722537056243,-5547.08920612,0.00018,2]
[333831441,1722537056253,-1165.55409247,0.00018,2]
[333831442,1722537056263,-700.0,0.00018,2]
[333831443,1722537056273,-986.8,0.00018,2]
[333831444,1722537056284,-23226.28961408,0.00018,2]
[333831445,1722537056294,-388.86284766,0.00018092,2]
[333831446,1722537056304,-1672.08700705,0.000181,2]
[333831447,1722537056314,-150.0,0.0001811,2]
[333831448,1722537056324,-255.96572213,0.0001812,2]
[333831449,1722537056334,-1500.0,0.00018148,2]
[333831450,1722537056344,-172.248,0.00018181,2]
[333831451,1722537056354,-172.248,0.00018181,2]
[333831452,1722537056365,-1000.0,0.00018203,2]
[333831453,1722537056375,-289.43164258,0.00018213,2]
[333831454,1722537056387,-3030.733546,0.00018356,2]
[333831455,1722537056397,-1003.94,0.0001843,2]
[333831456,1722537056408,-167.0,0.00018444,2]
[333831457,1722537056418,-1003.94,0.00018445,2]
[333831458,1722537056428,-151.0,0.0001849,2]
[333831459,1722537056438,-280.030852,0.0001849,2]
[333831460,1722537056449,-280.030852,0.0001849,2]
[333831461,1722537056459,-1060.615015,0.000185,2]
[333831462,1722537056470,-170.81662989,0.00018525,2]
[333831463,1722537056482,-2692.24190968,0.00018539,2]
[333831464,1722537056492,-236.40881395,0.00018547,2]
[333831465,1722537056502,-420.49,0.00018575,2]
[333831466,1722537056513,-420.49,0.00018575,2]
[333831467,1722537056524,-420.49,0.00018575,2]
[333831468,1722537056536,-420.49,0.00018575,2]
[333831469,1722537056546,-419.17,0.00018575,2]
[333831470,1722537056557,-3000.0,0.000186,2]
[333831471,1722537056570,-1500.0,0.00018719,2]
[333831472,1722537056582,-1500.0,0.00018723,2]
[333831473,1722537056592,-1500.0,0.00018756,2]
[333831474,1722537056603,-1500.0,0.00018757,2]
[333831475,1722537056614,-1500.0,0.00018779,2]
[333831476,1722537056625,-150.0,0.0001884,2]
[333831477,1722537056638,-1500.0,0.00018863,2]
[333831478,1722537056648,-308.34,0.0001888,2]
[333831479,1722537056658,-150.0,0.00018933,2]
[333831480,1722537056667,-300.0,0.00018936,2]
[333831481,1722537056677,-200.0,0.00018973,2]
[333831482,1722537056689,-150.0,0.00018999,2]
[333831483,1722537056700,-218.11688354,0.00019,2]
[333831484,1722537056711,-155.47678054,0.00019,2]
[333831485,1722537056721,-186.2945583,0.00019,2]
[333831486,1722537056731,-155.12875542,0.00019,2]
[333831487,1722537056742,-999.73519551,0.00019,2]
[333831488,1722537056752,-500.0,0.00019,2]
[333831489,1722537056762,-500.0,0.00019,2]
[333831490,1722537056772,-500.0,0.00019,2]
[333831491,1722537056783,-500.0,0.00019,2]
[333831492,1722537056793,-500.0,0.00019,2]
[333831493,1722537056803,-500.0,0.00019,2]
[333831494,1722537056813,-500.0,0.00019,2]
[333831495,1722537056823,-500.0,0.00019,2]
[333831496,1722537056834,-500.0,0.00019,2]
[333831497,1722537056843,-500.0,0.00019,2]
[333831498,1722537056854,-500.0,0.00019,2]
[333831499,1722537056864,-346.22,0.00019,2]
[333831500,1722537056876,-500.0,0.00019,2]
[333831501,1722537056887,-500.0,0.00019,2]
[333831502,1722537056899,-500.0,0.00019,2]
[333831503,1722537056909,-500.0,0.00019,2]
[333831504,1722537056921,-500.0,0.00019,2]
[333831505,1722537056931,-500.0,0.00019,2]
[333831506,1722537056942,-500.0,0.00019,2]
[333831507,1722537056954,-500.0,0.00019,2]
[333831508,1722537056964,-500.0,0.00019,2]
[333831509,1722537056974,-500.0,0.00019,2]
[333831510,1722537056984,-500.0,0.00019,2]
[333831511,1722537056994,-500.0,0.00019,2]
[333831512,1722537057005,-418.42,0.00019,2]
[333831513,1722537057015,-500.0,0.00019,2]
[333831514,1722537057025,-500.0,0.00019,2]
[333831515,1722537057035,-500.0,0.00019,2]
[333831516,1722537057045,-500.0,0.00019,2]
[333831517,1722537057055,-500.0,0.00019,2]
[333831518,1722537057066,-500.0,0.00019,2]
[333831519,1722537057076,-500.0,0.00019,2]
[333831520,1722537057086,-645.92,0.00019,2]
[333831521,1722537057096,-500.0,0.00019,2]
[333831522,1722537057107,-500.0,0.00019,2]
[333831523,1722537057116,-500.0,0.00019,2]
[333831524,1722537057126,-500.0,0.00019,2]
[333831525,1722537057138,-500.0,0.00019,2]
[333831526,1722537057149,-353.64,0.00019,2]
[333831527,1722537057159,-500.0,0.00019,2]
[333831528,1722537057170,-500.0,0.00019,2]
[333831529,1722537057180,-500.0,0.00019,2]
[333831530,1722537057190,-383.18,0.00019,2]
[333831531,1722537057201,-297.88,0.00019,2]
[333831532,1722537057212,-500.0,0.00019,2]
[333831533,1722537057222,-500.0,0.00019,2]
[333831534,1722537057233,-500.0,0.00019,2]
[333831535,1722537057243,-500.0,0.00019,2]
[333831536,1722537057253,-500.0,0.00019,2]
[333831537,1722537057264,-500.0,0.00019,2]
[333831538,1722537057275,-500.0,0.00019,2]
[333831539,1722537057642,-500.0,0.00019,2]
[333831540,1722537057652,-500.0,0.00019,2]
[333831541,1722537057661,-500.0,0.00019,2]
[333831542,1722537057671,-500.0,0.00019,2]
[333831543,1722537057681,-500.0,0.00019,2]
[333831544,1722537057691,-500.0,0.00019,2]
[333831545,1722537057702,-500.0,0.00019,2]
[333831546,1722537057713,-500.0,0.00019,2]
[333831547,1722537057723,-500.0,0.00019,2]
[333831548,1722537057734,-500.0,0.00019,2]
[333831549,1722537057745,-500.0,0.00019,2]
[333831550,1722537057756,-500.0,0.00019,2]
[333831551,1722537057767,-500.0,0.00019,2]
[333831552,1722537057777,-500.0,0.00019,2]
[333831553,1722537057788,-500.0,0.00019,2]
[333831554,1722537057799,-500.0,0.00019,2]
[333831555,1722537057809,-500.0,0.00019,2]
[333831556,1722537057820,-500.0,0.00019,2]
[333831557,1722537057831,-500.0,0.00019,2]
[333831558,1722537057844,-500.0,0.00019,2]
[333831559,1722537057855,-500.0,0.00019,2]
[333831560,1722537057866,-500.0,0.00019,2]
[333831561,1722537057882,-500.0,0.00019,2]
[333831562,1722537057894,-500.0,0.00019,2]
[333831563,1722537057904,-500.0,0.00019,2]
[333831564,1722537057914,-500.0,0.00019,2]
[333831565,1722537057925,-500.0,0.00019,2]
[333831566,1722537057935,-500.0,0.00019,2]
[333831567,1722537057945,-500.0,0.00019,2]
[333831568,1722537057956,-500.0,0.00019,2]
[333831569,1722537057966,-500.0,0.00019,2]
[333831570,1722537057977,-500.0,0.00019,2]
[333831571,1722537057987,-500.0,0.00019,2]
[333831572,1722537057997,-500.0,0.00019,2]
[333831573,1722537058007,-500.0,0.00019,2]
[333831574,1722537058016,-500.0,0.00019,2]
[333831575,1722537058026,-500.0,0.00019,2]
[333831576,1722537058037,-500.0,0.00019,2]
[333831577,1722537058047,-500.0,0.00019,2]
[333831578,1722537058056,-500.0,0.00019,2]
[333831579,1722537058066,-500.0,0.00019,2]
[333831580,1722537058076,-500.0,0.00019,2]
[333831581,1722537058085,-500.0,0.00019,2]
[333831582,1722537058096,-500.0,0.00019,2]
[333831583,1722537058106,-500.0,0.00019,2]
[333831584,1722537058119,-500.0,0.00019,2]
[333831585,1722537058130,-500.0,0.00019,2]
[333831586,1722537058145,-500.0,0.00019,2]
[333831587,1722537058155,-500.0,0.00019,2]
[333831588,1722537058165,-500.0,0.00019,2]
[333831589,1722537058176,-500.0,0.00019,2]
[333831590,1722537058187,-500.0,0.00019,2]
[333831591,1722537058197,-500.0,0.00019,2]
[333831592,1722537058207,-500.0,0.00019,2]
[333831593,1722537058218,-500.0,0.00019,2]
[333831594,1722537058228,-500.0,0.00019,2]
[333831595,1722537058238,-500.0,0.00019,2]
[333831596,1722537058248,-500.0,0.00019,2]
[333831597,1722537058258,-500.0,0.00019,2]
[333831598,1722537058268,-500.0,0.00019,2]
[333831599,1722537058278,-500.0,0.00019,2]
[333831600,1722537058288,-500.0,0.00019,2]
[333831601,1722537058298,-500.0,0.00019,2]
[333831602,1722537058307,-500.0,0.00019,2]
[333831603,1722537058317,-500.0,0.00019,2]
[333831604,1722537058326,-500.0,0.00019,2]
[333831605,1722537058336,-500.0,0.00019,2]
[333831606,1722537058346,-500.0,0.00019,2]
[333831607,1722537058356,-500.0,0.00019,2]
[333831608,1722537058366,-500.0,0.00019,2]
[333831609,1722537058376,-500.0,0.00019,2]
[333831610,1722537058388,-500.0,0.00019,2]
[333831611,1722537058397,-500.0,0.00019,2]
[333831612,1722537058407,-397.94,0.00019,2]
[333831613,1722537058416,-500.0,0.00019,2]
[333831614,1722537058426,-500.0,0.00019,2]
[333831615,1722537058436,-1000.0,0.00019,2]
[333831616,1722537058445,-500.0,0.00019,2]
[333831617,1722537058455,-500.0,0.00019,2]
[333831618,1722537058465,-500.0,0.00019,2]
[333831619,1722537058475,-1000.0,0.00019,2]
[333831620,1722537058484,-1000.0,0.00019,2]
[333831621,1722537058494,-1000.0,0.00019,3]
[333831622,1722537058504,-500.0,0.00019,2]
[333831623,1722537058513,-500.0,0.00019,2]
[333831624,1722537058522,-500.0,0.00019,2]
[333831625,1722537058532,-500.0,0.00019,2]
[333831626,1722537058541,-500.0,0.00019,2]
[333831627,1722537058551,-500.0,0.00019,2]
[333831628,1722537058560,-500.0,0.00019,2]
[333831629,1722537058570,-500.0,0.00019,2]
[333831630,1722537058579,-500.0,0.00019,2]
[333831631,1722537058588,-500.0,0.00019,2]
[333831632,1722537058598,-500.0,0.00019,2]
[333831633,1722537058608,-500.0,0.00019,2]
[333831634,1722537058617,-500.0,0.00019,2]
[333831635,1722537058626,-500.0,0.00019,2]
[333831636,1722537058638,-500.0,0.00019,2]
[333831637,1722537058647,-500.0,0.00019,2]
[333831638,1722537058657,-151.0,0.00019,2]
[333831639,1722537058666,-151.0,0.00019,2]
[333831640,1722537058675,-153.45663,0.00019,2]
[333831641,1722537058685,-153.45663,0.00019,2]
[333831642,1722537058694,-151.0,0.00019,2]
[333831643,1722537058704,-151.0,0.00019,2]
[333831644,1722537058713,-151.0,0.00019,2]
[333831645,1722537058723,-151.0,0.00019,2]
[333831646,1722537058732,-286.446186,0.00019,2]
[333831647,1722537058741,-151.0,0.00019,2]
[333831648,1722537058751,-600.0,0.00019,2]
[333831649,1722537058760,-600.0,0.00019,2]
[333831650,1722537058769,-278949.4920368,0.00019,2]
[333831651,1722537058779,-151.0,0.00019,2]
[333831652,1722537058788,-151.0,0.00019,2]
[333831653,1722537058797,-151.0,0.00019,2]
[333831654,1722537058807,-151.0,0.00019,2]
[333831655,1722537058817,-151.0,0.00019,2]
[333831656,1722537058827,-181.768872,0.00019,2]
[333831657,1722537058836,-1242.473188,0.00019,2]
[333831658,1722537058846,-1242.473188,0.00019,2]
[333831659,1722537058855,-159.398392,0.00019,2]
[333831660,1722537058865,-159.398392,0.00019,2]
[333831661,1722537058879,-233.551866,0.00019,2]
[333831662,1722537058888,-233.551866,0.00019,2]
[333831663,1722537058897,-1000.0,0.00019,2]
[333831664,1722537058907,-150.0,0.00019005,2]
[333831665,1722537058917,-300.0,0.00019007,2]
[333831666,1722537058927,-1500.0,0.00019016,2]
[333831667,1722537058936,-150.0,0.00019036,2]
[333831668,1722537058947,-150.0,0.00019045,2]
[333831669,1722537058957,-150.0,0.00019062,2]
[333831670,1722537058967,-150.0,0.00019098,2]
[333831671,1722537058976,-1500.0,0.00019111,2]
[333831672,1722537058986,-11712.58,0.00019151,2]
[333831673,1722537058996,-1500.0,0.00019157,2]
[333831674,1722537059006,-172.248,0.00019178,2]
[333831675,1722537059016,-172.248,0.00019178,2]
[333831676,1722537059025,-151.36556,0.00019178,2]
[333831677,1722537059035,-280.030852,0.00019178,2]
[333831678,1722537059044,-280.030852,0.00019178,2]
[333831679,1722537059054,-433.719349,0.00019178,2]
[333831680,1722537059063,-433.719349,0.00019178,2]
[333831681,1722537059073,-433.719349,0.00019178,2]
[333831682,1722537059082,-433.719349,0.00019178,2]
[333831683,1722537059092,-433.719349,0.00019178,2]
[333831684,1722537059103,-433.719349,0.00019178,2]
[333831685,1722537059113,-433.719349,0.00019178,2]
[333831686,1722537059123,-433.719349,0.00019178,2]
[333831687,1722537059133,-433.719349,0.00019178,2]
[333831688,1722537059145,-433.719349,0.00019178,2]
[333831689,1722537059155,-433.719349,0.00019178,2]
[333831690,1722537059165,-433.719349,0.00019178,2]
[333831691,1722537059176,-433.719349,0.00019178,2]
[333831692,1722537059187,-433.719349,0.00019178,2]
[333831693,1722537059198,-433.719349,0.00019178,2]
[333831694,1722537059208,-433.719349,0.00019178,2]
[333831695,1722537059218,-433.719349,0.00019178,2]
[333831696,1722537059228,-433.719349,0.00019178,2]
[333831697,1722537059239,-433.719349,0.00019178,2]
[333831698,1722537059248,-433.7193589,0.00019178,2]
[333831699,1722537059258,-200.0,0.00019178,2]
[333831700,1722537059267,-200.0,0.00019178,2]
[333831701,1722537059277,-200.0,0.00019178,2]
[333831702,1722537059287,-60544.17,0.00019178,2]
[333831703,1722537059296,-22660.21,0.00019178,2]
[333831704,1722537059305,-200.0,0.00019178,2]
[333831705,1722537059314,-200.0,0.00019178,2]
[333831706,1722537059324,-200.0,0.00019178,2]
[333831707,1722537059334,-186.0,0.00019178,2]
[333831708,1722537059343,-3161.49,0.00019178,2]
[333831709,1722537059352,-3030.733546,0.00019178,2]
[333831710,1722537059362,-150.0,0.00019185,2]
[333831711,1722537059371,-150.0,0.00019185,2]
[333831712,1722537059380,-150.0,0.00019186,2]
[333831713,1722537059391,-750.0,0.000192,2]
[333831714,1722537059400,-150.0,0.00019208,2]
[333831715,1722537059410,-150.0,0.00019226,2]
[333831716,1722537059419,-150.0,0.00019228,2]
[333831717,1722537059428,-150.0,0.00019229,2]
[333831718,1722537059438,-944.89688459,0.0001923,2]
[333831719,1722537059448,-1500.0,0.00019269,2]
[333831720,1722537059458,-300.0,0.00019281,2]
[333831721,1722537059467,-150.0,0.00019282,2]
[333831722,1722537059477,-150.0,0.0001929,2]
[333831723,1722537059486,-1500.0,0.00019321,2]
[333831724,1722537059496,-150.0,0.00019326,2]
[333831725,1722537059506,-150.0,0.00019331,2]
[333831726,1722537059517,-150.0,0.00019332,2]
[333831727,1722537059526,-150.0,0.00019337,2]
[333831728,1722537059536,-150.0,0.00019341,2]
[333831729,1722537059547,-150.0,0.00019346,2]
[333831730,1722537059557,-150.0,0.00019353,2]
[333831731,1722537059567,-150.0,0.00019371,2]
[333831732,1722537059577,-151.0,0.00019376,2]
[333831733,1722537059586,-284.0,0.00019376,2]
[333831734,1722537059596,-150.0,0.00019383,2]
[333831735,1722537059606,-749.15,0.00019385,2]
[333831736,1722537059615,-150.0,0.00019388,2]
[333831737,1722537059625,-150.0,0.00019388,2]
[333831738,1722537059634,-150.0,0.00019397,2]
[333831739,1722537059645,-150.0,0.00019402,2]
[333831740,1722537059655,-150.0,0.00019406,2]
[333831741,1722537059664,-150.0,0.00019411,2]
[333831742,1722537059674,-3162.0,0.00019412,2]
[333831743,1722537059684,-150.0,0.00019413,2]
[333831744,1722537059694,-150.0,0.00019414,2]
[333831745,1722537059704,-150.0,0.00019415,2]
[333831746,1722537059713,-1500.0,0.00019415,2]
[333831747,1722537059723,-150.0,0.00019421,2]
[333831748,1722537059733,-150.0,0.00019423,2]
[333831749,1722537059743,-150.0,0.00019426,2]
[333831750,1722537059752,-150.0,0.00019431,2]
[333831751,1722537059762,-150.0,0.00019432,2]
[333831752,1722537059772,-1500.0,0.00019436,2]
[333831753,1722537059781,-150.0,0.00019447,2]
[333831754,1722537059791,-1500.0,0.00019448,2]
[333831755,1722537059801,-1500.0,0.00019457,2]
[333831756,1722537059811,-2692.24190968,0.00019468,2]
[333831757,1722537059820,-150.0,0.00019476,2]
[333831758,1722537059830,-150.0,0.00019489,2]
[333831759,1722537059839,-1000.0,0.000195,2]
[333831760,1722537059849,-150.0,0.00019504,2]
[333831761,1722537059858,-150.0,0.00019515,2]
[333831762,1722537059869,-1500.0,0.00019548,2]
[333831763,1722537059882,-150.0,0.0001955,2]
[333831764,1722537059893,-150.0,0.00019563,2]
[333831765,1722537059903,-150.0,0.00019576,2]
[333831766,1722537059914,-150.0,0.00019579,2]
[333831767,1722537059924,-150.0,0.00019581,2]
[333831768,1722537059934,-150.0,0.00019584,2]
[333831769,1722537059944,-150.0,0.00019588,2]
[333831770,1722537059955,-150.0,0.00019589,2]
[333831771,1722537059965,-150.0,0.00019607,2]
[333831772,1722537059986,-150.0,0.00019608,2]
[333831773,1722537060005,-150.0,0.00019616,2]
[333831774,1722537060024,-150.0,0.00019624,2]
[333831775,1722537060047,-2692.24190968,0.00019626,2]
[333831776,1722537060069,-150.0,0.0001965,2]
[333831777,1722537060091,-216.69,0.00019658,2]
[333831778,1722537060108,-150.0,0.00019665,2]
[333831779,1722537060126,-150.0,0.00019668,2]
[333831780,1722537060148,-150.0,0.00019669,2]
[333831781,1722537060166,-1500.0,0.00019673,2]
[333831782,1722537060180,-1500.0,0.00019675,2]
[333831783,1722537060200,-150.0,0.00019684,2]
[333831784,1722537060217,-1500.0,0.000197,2]
[333831785,1722537060235,-150.0,0.00019707,2]
[333831786,1722537060251,-1500.0,0.00019708,2]
[333831787,1722537060269,-150.0,0.00019729,2]
[333831788,1722537060288,-150.0,0.00019732,2]
[333831789,1722537060307,-150.0,0.00019733,2]
[333831790,1722537060323,-1495.43974592,0.00019738,2]
[333831791,1722537060340,-150.0,0.00019749,2]
[333831792,1722537060356,-150.0,0.00019757,2]
[333831793,1722537060374,-150.0,0.00019767,2]
[333831794,1722537060392,-150.0,0.00019772,2]
[333831795,1722537060409,-150.0,0.00019781,2]
[333831796,1722537060425,-300.0,0.00019794,2]
[333831797,1722537060442,-1500.0,0.00019803,2]
[333831798,1722537060459,-150.0,0.00019822,2]
[333831799,1722537060476,-516.49099088,0.00019827,2]
[333831800,1722537060494,-1500.0,0.00019848,2]
[333831801,1722537060526,-1500.0,0.0001985,2]
[333831802,1722537060542,-308.34,0.0001985,2]
[333831803,1722537060559,-300.0,0.00019861,2]
[333831804,1722537060575,-1500.0,0.00019862,2]
[333831805,1722537060592,-150.0,0.00019878,2]
[333831806,1722537060609,-1500.0,0.00019878,2]
[333831807,1722537060626,-150.0,0.00019885,2]
[333831808,1722537060647,-150.0,0.00019885,2]
[333831809,1722537060666,-980.19026601,0.0001989,2]
[333831810,1722537060684,-150.0,0.00019893,2]
[333831811,1722537060701,-73374.97429802,0.00019896,2]
[333831812,1722537060719,-151.0,0.00019896,2]
[333831813,1722537060736,-4610.5860903,0.000199,3]
[333831814,1722537060752,-11539.73600288,0.000199,2]
[333831815,1722537060770,-11539.73600287,0.000199,2]
[333831816,1722537060786,-11539.73600287,0.000199,2]
[333831817,1722537060803,-150.0,0.00019901,2]
[333831818,1722537060819,-150.0,0.00019912,2]
[333831819,1722537060836,-150.0,0.00019916,2]
[333831820,1722537060853,-150.0,0.00019918,2]
[333831821,1722537060873,-150.0,0.00019925,2]
[333831822,1722537060898,-150.0,0.00019933,2]
[333831823,1722537060917,-150.0,0.00019935,2]
[333831824,1722537060935,-150.0,0.0001995,2]
[333831825,1722537060954,-150.0,0.00019965,2]
[333831826,1722537060971,-400.0,0.0001997,2]
[333831827,1722537060988,-700.0,0.0001997,2]
[333831828,1722537061006,-150.0,0.00019977,2]
[333831829,1722537061023,-3282.6219995,0.00019996,2]
[333831830,1722537061040,-426.2547781,0.00019996,2]
[333831831,1722537061058,-6589.741829,0.00019996,2]
[333831832,1722537061075,-258.7254696,0.00019996,2]
[333831833,1722537061092,-89034.889294,0.00019996,2]
[333831834,1722537061109,-150.0,0.00019997,2]
[333831835,1722537061127,-1378.69160911,0.0002,2]
[333831836,1722537061146,-6653.0,0.0002,2]
[333831837,1722537061164,-309.65630807,0.0002,2]
[333831838,1722537061181,-155.0,0.0002,2]
[333831839,1722537061197,-307.83579872,0.0002,2]
[333831840,1722537061213,-150.0,0.0002,2]
[333831841,1722537061230,-293.64123199,0.0002,2]
[333831842,1722537061246,-3772.08543611,0.0002,2]
[333831843,1722537061263,-3950.0,0.0002,2]
[333831844,1722537061280,-2582.63352459,0.0002,2]
[333831845,1722537061298,-21723.51887558,0.0002,2]
[333831846,1722537061315,-150.0,0.0002,2]
[333831847,1722537061331,-12000.0,0.0002,2]
[333831848,1722537061349,-1180.34141898,0.0002,4]
[333831849,1722537061366,-5140.0,0.0002,2]
[333831850,1722537061383,-20828.72012962,0.0002,2]
[333831851,1722537061403,-768.56374596,0.0002,4]
[333831852,1722537061418,-1772.97852116,0.0002,2]
[333831853,1722537061435,-502.86,0.0002,2]
[333831854,1722537061449,-1978.64466052,0.0002,2]
[333831855,1722537061467,-312.0,0.0002,2]
[333831856,1722537061484,-154.99946857,0.0002,2]
[333831857,1722537061500,-500.0,0.0002,2]
[333831858,1722537061516,-227.01,0.0002,2]
[333831859,1722537061531,-500.54,0.0002,2]
[333831860,1722537061547,-500.0,0.0002,2]
[333831861,1722537061564,-500.0,0.0002,2]
[333831862,1722537061579,-174.0,0.0002,2]
[333831863,1722537061596,-174.0,0.0002,2]
[333831864,1722537061613,-349.0,0.0002,2]
[333831865,1722537061630,-302.75482069,0.0002,2]
[333831866,1722537061649,-150.0,0.0002,2]
[333831867,1722537061664,-150.0,0.0002,2]
[333831868,1722537061681,-349.0,0.0002,2]
[333831869,1722537061697,-192.0,0.0002,2]
[333831870,1722537061713,-1749.0,0.0002,2]
[333831871,1722537061728,-1749.0,0.0002,2]
[333831872,1722537061743,-192.0,0.0002,2]
[333831873,1722537061758,-1000.06259641,0.0002,2]
[333831874,1722537061773,-3200.0,0.0002,2]
[333831875,1722537061789,-500.32,0.0002,2]
[333831876,1722537061805,-369.03861156,0.0002,2]
[333831877,1722537061821,-988.0,0.0002,2]
[333831878,1722537061837,-988.0,0.0002,2]
[333831879,1722537061853,-217.94249521,0.0002,2]
[333831880,1722537061871,-10062.1084256,0.0002,2]
[333831881,1722537061896,-22241.90684411,0.0002,2]
[333831882,1722537061912,-1749.0,0.0002,2]
[333831883,1722537061934,-1749.0,0.0002,2]
[333831884,1722537061951,-192.0,0.0002,2]
[333831885,1722537061969,-200.0,0.0002,2]
[333831886,1722537061985,-185.0,0.0002,2]